bitfinex-derivatives/quotes_BTCF0:USTF0_20240905
["timestamp","ask_amount","ask_price","bid_price","bid_amount"]
[1725545164550,0.3608,57206.0,57186.0,0.087437]
[1725545164551,0.7216,57188.0,57186.0,0.7148]
[1725545164753,0.7216,57188.0,57187.0,0.004]
[1725545164965,0.7216,57198.0,57187.0,0.004]
[1725545165160,0.7216,57204.0,57197.0,0.004]
[1725545165363,0.80901,57204.0,57203.0,0.004]
[1725545165960,0.7216,57204.0,57203.0,0.004]
[1725545166149,0.7216,57205.0,57203.0,0.004]
[1725545166458,0.7216,57209.0,57204.0,0.004]
[1725545166667,0.087409,57205.0,57204.0,0.004]
[1725545166861,0.7216,57209.0,57202.0,0.3608]
[1725545166862,0.087412,57203.0,57202.0,0.3608]
[1725545167957,0.7216,57209.0,57197.0,0.004]
[1725545167958,0.087417,57200.0,57197.0,0.004]
[1725545168157,0.087418,57199.0,57197.0,0.004]
[1725545168570,0.3608,57207.0,57197.0,0.004]
[1725545168571,0.08742,57198.0,57197.0,0.004]
[1725545168956,1.32932,57198.0,57197.0,0.004]
[1725545169271,0.087436,57187.0,57186.0,0.004]
[1725545169664,0.127436,57187.0,57186.0,0.004]
[1725545169963,1.339472,57187.0,57186.0,0.004]
[1725545170161,1.1946,57187.0,57176.0,0.3608]
[1725545170467,0.3608,57186.0,57176.0,0.36106244]
[1725545170658,0.087452,57177.0,57176.0,0.36106244]
[1725545171059,0.087452,57177.0,57176.0,0.00026244]
[1725545171255,0.174904,57177.0,57176.0,0.00026244]
[1725545171466,0.087452,57177.0,57176.0,0.00126244]
[1725545171665,1.212132,57177.0,57176.0,0.00126244]
[1725545171871,1.242132,57177.0,57176.0,0.00126244]
[1725545172167,0.087468,57166.0,57165.0,0.3608]
[1725545173766,0.087463,57170.0,57165.0,0.3618]
[1725545173965,0.087462,57170.0,57169.0,0.004]
[1725545175561,0.00026244,57171.0,57169.0,0.00360001]
[1725545175764,0.00026244,57171.0,57170.0,0.3648]
[1725545176073,0.43772344,57171.0,57170.0,0.004]
[1725545176871,0.08972344,57171.0,57170.0,0.004]
[1725545177075,0.08972344,57171.0,57170.0,0.3648]
[1725545177076,0.00226244,57171.0,57170.0,0.3648]
[1725545177568,0.00226244,57171.0,57170.0,0.3658]
[1725545177762,0.00226244,57171.0,57170.0,0.3618]
[1725545177969,0.00226244,57171.0,57170.0,0.449262]
[1725545178571,0.00226244,57171.0,57170.0,0.3618]
[1725545178772,0.08972344,57171.0,57170.0,0.001]
[1725545179173,0.087468,57166.0,57165.0,0.3608]
[1725545179470,0.089468,57166.0,57165.0,0.3608]
[1725545179776,0.002,57166.0,57165.0,0.3608]
[1725545179973,0.089468,57166.0,57165.0,0.3608]
[1725545180475,0.090468,57166.0,57165.0,0.3618]
[1725545181384,0.090468,57166.0,57165.0,0.001]
[1725545181385,0.752736,57166.0,57165.0,0.001]
[1725545181568,0.812736,57166.0,57165.0,0.001]
[1725545181870,0.210468,57166.0,57165.0,0.001]
[1725545182870,0.170468,57166.0,57165.0,0.001]
[1725545183565,0.35,57198.0,57166.0,0.52476]
[1725545183759,0.3608,57192.0,57181.0,0.3608]
[1725545183973,0.3608,57192.0,57179.0,0.35]
[1725545183974,0.087421,57197.0,57187.0,0.7216]
[1725545184160,0.087418,57199.0,57192.0,0.3628]
[1725545184366,0.3608,57199.0,57192.0,0.3608]
[1725545184575,0.3608,57194.0,57187.0,0.00026244]
[1725545184775,0.002,57188.0,57187.0,0.00026244]
[1725545185463,0.002,57188.0,57187.0,0.36106244]
[1725545185664,0.002,57188.0,57187.0,0.36206244]
[1725545185874,0.002,57188.0,57187.0,0.44949844]
[1725545186077,0.002,57188.0,57187.0,0.36206244]
[1725545188871,0.002,57188.0,57187.0,0.44949844]
[1725545191164,0.00026165,57198.0,57192.0,0.087429]
[1725545191478,0.00026165,57198.0,57197.0,0.087421]
[1725545191669,0.00026165,57198.0,57197.0,0.798221]
[1725545191981,0.00026165,57198.0,57197.0,0.802221]
[1725545192175,0.00026165,57198.0,57197.0,0.7148]
[1725545192367,0.00026165,57198.0,57197.0,0.3648]
[1725545192968,0.00026165,57198.0,57197.0,0.3658]
[1725545193168,0.00026165,57198.0,57197.0,0.803221]
[1725545193982,0.00026165,57198.0,57197.0,0.453221]
[1725545194186,0.00026165,57198.0,57197.0,0.3648]
[1725545194370,0.00026165,57198.0,57197.0,1.577701]
[1725545194577,0.08651584,57214.0,57197.0,1.49028]
[1725545194879,0.08651584,57214.0,57213.0,0.004]
[1725545194880,0.097395,57214.0,57213.0,0.004]
[1725545195075,0.01,57214.0,57213.0,0.004]
[1725545196369,0.08651584,57223.0,57217.0,0.08739]
[1725545196569,0.09,57223.0,57213.0,0.442396]
[1725545196773,0.09,57223.0,57213.0,0.001]
[1725545196967,0.18014082,57223.0,57213.0,0.001]
[1725545197172,0.09362498,57223.0,57214.0,0.35]
[1725545197671,0.087386,57220.0,57214.0,0.35]
[1725545197871,0.087391,57217.0,57213.0,0.001]
[1725545198073,0.187391,57217.0,57213.0,0.001]
[1725545198280,0.187391,57217.0,57216.0,0.3608]
[1725545198782,0.1,57217.0,57216.0,0.3608]
[1725545198977,0.00362498,57223.0,57216.0,0.3608]
[1725545199183,0.08,57223.0,57222.0,0.004]
[1725545199381,0.08,57223.0,57213.0,0.001]
[1725545199382,0.087395,57214.0,57213.0,0.001]
[1725545199584,0.3608,57217.0,57213.0,0.001]
[1725545199879,0.19739,57217.0,57216.0,0.005]
[1725545200273,0.11,57217.0,57216.0,0.005]
[1725545200478,0.11,57217.0,57216.0,0.004]
[1725545200479,0.19739,57217.0,57216.0,0.004]
[1725545200869,0.20112775,57217.0,57216.0,0.004]
[1725545201273,0.20112775,57217.0,57216.0,0.3648]
[1725545201470,0.11373775,57217.0,57216.0,0.3648]
[1725545202177,0.11373775,57217.0,57216.0,0.3658]
[1725545202777,0.00373775,57217.0,57216.0,0.3658]
[1725545202977,0.087385,57221.0,57216.0,0.3658]
[1725545203182,0.12,57221.0,57220.0,0.004]
[1725545204582,0.207384,57221.0,57220.0,0.004]
[1725545205377,0.59394282,57221.0,57220.0,0.005]
[1725545205577,1.04212682,57221.0,57220.0,0.005]
[1725545205776,0.594768,57221.0,57220.0,0.004]
[1725545205980,0.594768,57221.0,57220.0,0.005]
[1725545206184,0.12,57221.0,57220.0,0.005]
[1725545206377,0.20657423,57221.0,57220.0,0.004]
[1725545206577,0.12,57221.0,57220.0,0.005]
[1725545208078,0.207384,57221.0,57220.0,0.004]
[1725545208282,0.507384,57221.0,57220.0,0.005]
[1725545208477,0.20657423,57221.0,57220.0,0.005]
[1725545208682,0.12,57221.0,57220.0,0.3648]
[1725545208874,0.004,57223.0,57222.0,0.087383]
[1725545209177,0.004,57223.0,57222.0,0.389383]
[1725545209383,0.004,57223.0,57222.0,1.513663]
[1725545209784,0.004,57223.0,57222.0,0.913663]
[1725545209990,0.004,57223.0,57222.0,1.513663]
[1725545210381,0.004,57223.0,57222.0,0.913663]
[1725545210788,0.004,57223.0,57222.0,1.601046]
[1725545211093,0.08657423,57233.0,57222.0,1.601046]
[1725545211094,0.06925911,57233.0,57227.0,0.3]
[1725545211293,0.08657423,57235.0,57232.0,0.3648]
[1725545211488,0.04,57235.0,57234.0,0.004]
[1725545211699,0.08657423,57238.0,57234.0,0.52416]
[1725545211888,0.06929228,57238.0,57237.0,0.75216]
[1725545212083,0.08657423,57242.0,57237.0,0.75216]
[1725545212285,0.087357,57239.0,57237.0,0.3648]
[1725545212691,0.387358,57238.0,57237.0,0.004]
[1725545212986,0.06929292,57243.0,57238.0,0.52412]
[1725545213289,0.06929292,57243.0,57237.0,0.9648]
[1725545213290,0.087351,57243.0,57242.0,0.3648]
[1725545214394,0.808951,57243.0,57242.0,0.004]
[1725545214686,0.7216,57243.0,57242.0,0.004]
[1725545215395,0.7616,57243.0,57242.0,0.004]
[1725545215692,0.7616,57243.0,57242.0,0.005]
[1725545217292,0.7216,57243.0,57242.0,0.092352]
[1725545218190,0.7216,57243.0,57242.0,1.216432]
[1725545218392,0.7216,57249.0,57248.0,0.087343]
[1725545218584,0.7216,57249.0,57248.0,0.452143]
[1725545218780,0.00370767,57250.0,57248.0,0.3648]
[1725545218990,0.72248,57251.0,57249.0,0.004]
[1725545219185,0.06937836,57250.0,57249.0,0.004]
[1725545219394,0.41,57250.0,57249.0,0.004]
[1725545219593,0.49734,57250.0,57249.0,0.004]
[1725545220293,0.11,57250.0,57249.0,0.004]
[1725545220484,0.81344552,57251.0,57249.0,0.005]
[1725545220485,0.72610652,57251.0,57249.0,0.005]
[1725545220686,0.72522652,57251.0,57250.0,0.004]
[1725545220890,0.81522652,57251.0,57250.0,0.004]
[1725545222096,0.7216,57251.0,57250.0,0.004]
[1725545222400,0.08657423,57263.0,57250.0,0.004]
[1725545222401,0.28942029,57256.0,57255.0,0.261996]
[1725545222617,0.08657423,57277.0,57260.0,0.087323]
[1725545222803,0.2894,57277.0,57276.0,1.1129]
[1725545223097,0.2894,57277.0,57276.0,1.1089]
[1725545223599,0.2894,57277.0,57276.0,0.7216]
[1725545223787,0.2054,57277.0,57272.0,0.3608]
[1725545224103,0.2054,57277.0,57273.0,0.3608]
[1725545224497,0.2054,57277.0,57274.0,0.3]
[1725545224895,0.2054,57277.0,57273.0,0.3608]
[1725545225498,0.2054,57277.0,57263.0,0.00026196]
[1725545225499,0.3,57274.0,57264.0,0.3608]
[1725545225700,0.41,57274.0,57264.0,0.3608]
[1725545226002,0.11,57274.0,57265.0,0.3]
[1725545226397,0.3,57273.0,57264.0,0.3608]
[1725545226702,0.087308,57271.0,57264.0,0.3618]
[1725545226889,0.12,57271.0,57264.0,0.001]
[1725545227087,0.3,57269.0,57263.0,0.00026196]
[1725545227298,0.5019,57277.0,57265.0,0.001]
[1725545227299,0.06936477,57275.0,57265.0,0.001]
[1725545227502,0.087305,57274.0,57269.0,0.3608]
[1725545227801,0.087305,57273.0,57269.0,0.3608]
[1725545228397,0.429199,57277.0,57269.0,0.3608]
[1725545228592,0.3419,57277.0,57276.0,0.3648]
[1725545228791,0.3419,57277.0,57276.0,0.004]
[1725545228792,0.208699,57277.0,57276.0,0.004]
[1725545229000,0.208699,57277.0,57276.0,0.3648]
[1725545229196,0.208699,57277.0,57276.0,0.004]
[1725545230300,1.719758,57277.0,57276.0,0.005]
[1725545230494,1.839758,57277.0,57276.0,0.005]
[1725545230689,0.087316,57266.0,57260.0,0.3608]
[1725545230903,0.3,57267.0,57260.0,0.3608]
[1725545231206,0.174638,57264.0,57252.0,0.3608]
[1725545231408,0.08732,57263.0,57252.0,0.3608]
[1725545231702,0.748132,57256.0,57246.0,0.3608]
[1725545231902,0.087341,57250.0,57241.0,0.3608]
[1725545232104,0.3,57248.0,57241.0,0.3608]
[1725545232401,0.087352,57242.0,57241.0,0.3608]
[1725545232806,0.087352,57242.0,57239.0,0.00026196]
[1725545232807,0.087355,57240.0,57239.0,0.00026196]
[1725545232993,0.748155,57240.0,57239.0,0.00026196]
[1725545233197,0.778155,57240.0,57239.0,0.00026196]
[1725545233399,2.023675,57240.0,57229.0,0.3608]
[1725545233598,0.087371,57230.0,57224.0,0.00148]
[1725545233800,0.087371,57230.0,57217.0,0.3608]
[1725545233801,0.3,57225.0,57217.0,0.3608]
[1725545234096,0.437389,57218.0,57217.0,0.3608]
[1725545234503,1.037389,57218.0,57217.0,0.3608]
[1725545234809,1.649098,57218.0,57217.0,0.3608]
[1725545235205,0.961709,57218.0,57217.0,0.3608]
[1725545235409,0.961709,57218.0,57212.0,0.00026196]
[1725545235410,0.087391,57217.0,57212.0,0.00026196]
[1725545235607,0.7108,57213.0,57212.0,0.00026196]
[1725545235908,1.96516,57213.0,57190.0,0.3608]
[1725545236204,0.3608,57200.0,57190.0,0.3608]
[1725545236395,0.35,57201.0,57195.0,0.3608]
[1725545236597,0.7108,57208.0,57200.0,0.004]
[1725545236797,0.00026221,57210.0,57207.0,0.004]
[1725545237006,0.00026221,57210.0,57204.0,0.3608]
[1725545237007,0.00026221,57210.0,57209.0,0.3648]
[1725545237206,0.00026221,57210.0,57209.0,0.32432001]
[1725545238004,0.00026221,57210.0,57204.0,0.3608]
[1725545238202,0.3608,57206.0,57200.0,0.004]
[1725545238406,0.00026221,57210.0,57200.0,0.004]
[1725545238407,0.002,57201.0,57200.0,0.004]
[1725545238806,0.002,57201.0,57200.0,0.005]
[1725545239298,0.002,57201.0,57200.0,0.004]
[1725545239502,0.002,57201.0,57200.0,0.005]
[1725545240211,0.005,57201.0,57200.0,0.005]
[1725545241102,0.005,57201.0,57200.0,0.092416]
[1725545241612,0.002,57205.0,57203.0,0.087412]
[1725545241911,0.002,57205.0,57204.0,0.3628]
[1725545243110,0.004,57205.0,57204.0,0.3628]
[1725545243312,0.002,57205.0,57204.0,0.3628]
[1725545243500,0.002,57205.0,57204.0,1.57465]
[1725545244617,0.00121412,57205.0,57204.0,0.97465]
[1725545244910,0.00121412,57205.0,57204.0,0.3628]
[1725545245126,0.127409,57205.0,57204.0,0.003]
[1725545245311,0.087409,57205.0,57204.0,0.003]
[1725545245699,0.71168,57207.0,57204.0,0.003]
[1725545245904,0.7108,57207.0,57206.0,0.002]
[1725545246205,0.868206,57207.0,57206.0,0.002]
[1725545246409,0.798206,57207.0,57206.0,0.002]
[1725545247110,0.798206,57207.0,57206.0,0.003]
[1725545247307,0.35,57212.0,57206.0,0.3638]
[1725545247512,0.3618,57216.0,57206.0,0.3638]
[1725545247513,0.3608,57216.0,57206.0,0.3638]
[1725545247710,0.3608,57216.0,57209.0,0.002]
[1725545247914,0.4714,57217.0,57209.0,0.002]
[1725545248109,0.4714,57217.0,57209.0,0.089403]
[1725545248906,0.087392,57216.0,57209.0,0.002]
[1725545249103,0.16766321,57210.0,57209.0,0.002]
[1725545249808,0.15766321,57210.0,57209.0,0.003]
[1725545250216,0.75766321,57210.0,57209.0,0.003]
[1725545250413,1.57586421,57210.0,57209.0,0.002]
[1725545250716,0.087415,57201.0,57200.0,0.004]
[1725545250907,0.509415,57201.0,57200.0,0.004]
[1725545251108,0.422,57201.0,57200.0,0.004]
[1725545251308,0.072,57201.0,57200.0,0.004]
[1725545251611,0.072,57201.0,57196.0,0.448221]
[1725545251812,0.002,57199.0,57196.0,0.3608]
[1725545252519,0.002,57199.0,57196.0,0.448222]
[1725545252902,0.002,57199.0,57195.0,0.3608]
[1725545252903,0.209418,57199.0,57198.0,0.00126221]
[1725545253119,1.421316,57199.0,57198.0,1e-08]
[1725545253312,1.421316,57199.0,57184.0,0.3608]
[1725545253313,0.087422,57197.0,57184.0,0.3608]
[1725545253514,0.002,57185.0,57184.0,0.3608]
[1725545254218,0.302,57185.0,57184.0,0.3608]
[1725545255514,0.302,57185.0,57184.0,0.3618]
[1725545255515,0.303,57185.0,57184.0,0.3618]
[1725545256021,0.003,57185.0,57184.0,0.3618]
[1725545259018,0.003,57185.0,57184.0,0.449241]
[1725545259321,0.003,57185.0,57184.0,0.973841]
[1725545259625,0.003,57185.0,57184.0,1.573841]
[1725545259920,0.003,57185.0,57184.0,0.449241]
[1725545260423,0.003,57185.0,57184.0,0.973841]
[1725545261011,0.003,57185.0,57184.0,0.449241]
[1725545261407,0.003,57185.0,57184.0,0.3618]
[1725545261724,0.090439,57185.0,57184.0,0.3618]
[1725545262423,0.003,57185.0,57184.0,0.449241]
[1725545263707,0.003,57185.0,57184.0,0.3618]
[1725545264120,0.003,57185.0,57184.0,0.449241]
[1725545264821,0.003,57185.0,57184.0,0.3618]
[1725545265022,0.090439,57185.0,57184.0,0.3618]
[1725545265322,0.220439,57185.0,57184.0,0.3618]
[1725545266219,0.133,57185.0,57184.0,0.3618]
[1725545267325,0.133,57185.0,57184.0,0.001]
[1725545267326,0.220439,57185.0,57184.0,0.001]
[1725545267632,0.307878,57185.0,57184.0,0.001]
[1725545268130,1.2576,57185.0,57179.0,0.00026221]
[1725545268327,1.2576,57185.0,57171.0,0.3608]
[1725545268328,0.087453,57177.0,57176.0,0.3608]
[1725545268510,0.352,57177.0,57176.0,0.3608]
[1725545268716,0.002,57180.0,57176.0,0.3608]
[1725545268912,0.002,57180.0,57179.0,0.3628]
[1725545269320,0.002,57180.0,57179.0,0.450249]
[1725545269525,0.002,57180.0,57179.0,0.3628]
[1725545269821,0.002,57180.0,57179.0,0.450249]
[1725545271222,0.002,57180.0,57179.0,0.3628]
[1725545271421,0.011,57180.0,57179.0,0.3638]
[1725545271619,0.011,57180.0,57179.0,0.451249]
[1725545271826,0.011,57180.0,57179.0,0.3638]
[1725545272028,0.016,57180.0,57179.0,0.3638]
[1725545272640,0.089447,57180.0,57179.0,0.3628]
[1725545272927,0.103447,57180.0,57179.0,0.3638]
[1725545273722,0.270894,57180.0,57179.0,0.003]
[1725545274016,1.483021,57180.0,57174.0,0.00026221]
[1725545274219,0.52491,57175.0,57174.0,0.00026221]
[1725545274419,1.249085,57175.0,57174.0,0.00026221]
[1725545274732,1.849085,57175.0,57174.0,0.00026221]
[1725545274936,1.849085,57175.0,57160.0,0.3608]
[1725545274937,0.087465,57168.0,57160.0,0.3608]
[1725545275233,0.437476,57161.0,57160.0,0.3608]
[1725545275431,0.519476,57161.0,57154.0,0.3608]
[1725545275622,0.352,57155.0,57149.0,0.3608]
[1725545275824,0.352,57150.0,57149.0,0.3608]
[1725545276030,0.35,57150.0,57149.0,0.3608]
[1725545276233,0.3,57150.0,57149.0,0.3608]
[1725545276531,0.00026244,57155.0,57152.0,0.087489]
[1725545276730,0.30026244,57155.0,57154.0,0.450287]
[1725545276927,0.00026244,57155.0,57154.0,0.450287]
[1725545277240,0.00026244,57155.0,57154.0,0.975167]
[1725545277534,0.002,57161.0,57160.0,0.087478]
[1725545277837,0.002,57161.0,57160.0,0.450278]
[1725545278023,0.002,57161.0,57160.0,0.975118]
[1725545278223,0.002,57161.0,57160.0,1.02645041]
[1725545278625,0.002,57161.0,57160.0,0.975118]
[1725545279338,0.002,57161.0,57160.0,1.02645041]
[1725545279831,0.002,57161.0,57160.0,0.975118]
[1725545280224,0.002,57161.0,57160.0,1.02645041]
[1725545280424,1.334316,57161.0,57154.0,0.41213241]
[1725545280624,1.334316,57161.0,57154.0,0.3608]
[1725545280625,0.089485,57155.0,57154.0,0.3608]
[1725545280831,0.088485,57155.0,57154.0,0.3608]
[1725545281335,0.002,57155.0,57148.0,0.3608]
[1725545281526,0.3,57150.0,57149.0,0.087494]
[1725545281729,0.3,57154.0,57153.0,0.087488]
[1725545281936,0.3,57154.0,57153.0,0.089488]
[1725545282332,0.3,57154.0,57153.0,0.002]
[1725545282636,0.011,57161.0,57154.0,0.087487]
[1725545282637,0.002,57155.0,57154.0,0.087487]
[1725545282823,0.002,57155.0,57154.0,0.50161941]
[1725545283029,0.387485,57155.0,57154.0,0.3628]
[1725545283429,0.83577,57155.0,57154.0,0.002]
[1725545283624,0.748285,57155.0,57153.0,0.001]
[1725545283831,0.3,57145.0,57144.0,0.36097707]
[1725545284040,0.389501,57145.0,57144.0,0.36097707]
[1725545284223,0.387501,57145.0,57144.0,0.36097707]
[1725545284426,1.670002,57145.0,57144.0,0.36097707]
[1725545284837,1.670002,57145.0,57131.0,0.3608]
[1725545284838,0.087521,57132.0,57131.0,0.3608]
[1725545285137,0.6628,57132.0,57120.0,0.3608]
[1725545285437,0.002,57121.0,57120.0,0.36453651]
[1725545285636,0.002,57121.0,57120.0,0.72533651]
[1725545285831,0.002,57121.0,57120.0,1.85053651]
[1725545286041,0.002,57121.0,57120.0,2.06793651]
[1725545286334,0.00026244,57126.0,57120.0,2.06793651]
[1725545286541,0.3,57133.0,57128.0,0.087526]
[1725545286735,0.3,57133.0,57132.0,0.002]
[1725545286924,0.3,57133.0,57131.0,0.3608]
[1725545287124,0.002,57132.0,57131.0,0.3608]
[1725545288330,0.3,57133.0,57131.0,0.3608]
[1725545288643,0.3,57133.0,57132.0,0.002]
[1725545289435,0.00026244,57137.0,57133.0,0.087519]
[1725545289635,0.00026244,57137.0,57136.0,0.3628]
[1725545290335,0.08777544,57137.0,57136.0,0.002]
[1725545291141,0.00026244,57137.0,57136.0,0.002]
[1725545292040,0.01326244,57137.0,57136.0,0.002]
[1725545292338,0.20077544,57137.0,57136.0,0.002]
[1725545292541,0.10077544,57137.0,57136.0,0.002]
[1725545292838,0.12077544,57137.0,57136.0,0.002]
[1725545293227,0.03326244,57137.0,57136.0,0.002]
[1725545293439,0.01326244,57137.0,57136.0,0.002]
[1725545293936,0.13326244,57137.0,57136.0,0.002]
[1725545294244,0.01326244,57137.0,57136.0,0.614554]
[1725545294432,0.00447582,57137.0,57136.0,1.214554]
[1725545294735,0.00447582,57137.0,57136.0,1.302068]
[1725545294945,0.00447582,57137.0,57136.0,1.214554]
[1725545295333,0.00447582,57137.0,57136.0,0.614554]
[1725545295641,0.00447582,57137.0,57136.0,0.002]
[1725545296030,0.20198882,57137.0,57136.0,0.002]
[1725545296236,0.09198882,57137.0,57136.0,0.002]
[1725545296431,0.00447582,57137.0,57136.0,0.089514]
[1725545297345,0.00447582,57137.0,57136.0,1.214554]
[1725545298354,0.00447582,57137.0,57136.0,1.302068]
[1725545298736,0.00026244,57142.0,57141.0,0.087507]
[1725545299048,0.00026244,57142.0,57141.0,0.450307]
[1725545300045,0.08776744,57142.0,57141.0,0.450307]
[1725545300843,0.00026244,57142.0,57141.0,0.450307]
[1725545301235,0.00026244,57142.0,57141.0,1.662814]
[1725545301447,4.4e-07,57142.0,57141.0,1.883214]
[1725545301641,4.4e-07,57142.0,57141.0,1.575307]
[1725545301843,0.09850544,57142.0,57141.0,0.451307]
[1725545302341,0.09850544,57142.0,57141.0,0.450307]
[1725545302342,0.00400044,57142.0,57141.0,0.450307]
[1725545302549,0.39150544,57142.0,57141.0,0.3628]
[1725545302850,0.09150544,57142.0,57141.0,0.450307]
[1725545303646,4.4e-07,57142.0,57141.0,0.450307]
[1725545304336,4.4e-07,57142.0,57141.0,1.750321]
[1725545304739,4.4e-07,57142.0,57141.0,1.80165341]
[1725545304946,4.4e-07,57142.0,57141.0,1.750321]
[1725545305141,0.01000044,57142.0,57141.0,1.751321]
[1725545305642,4.4e-07,57142.0,57141.0,1.750321]
[1725545305846,4.4e-07,57142.0,57141.0,1.837828]
[1725545306052,4.4e-07,57142.0,57141.0,1.84147532]
[1725545306435,0.3,57167.0,57166.0,0.087468]
[1725545306636,0.1214,57169.0,57168.0,0.087465]
[1725545306839,0.1214,57169.0,57168.0,0.089465]
[1725545307045,0.1214,57169.0,57168.0,0.087465]
[1725545308141,0.1214,57169.0,57166.0,0.3628]
[1725545308449,0.1214,57169.0,57166.0,0.450268]
[1725545308450,0.002,57167.0,57166.0,0.450268]
[1725545308638,0.002,57167.0,57166.0,0.537736]
[1725545308841,0.002,57167.0,57166.0,1.062536]
[1725545309546,0.002,57167.0,57166.0,0.450268]
[1725545309743,0.002,57167.0,57166.0,0.451268]
[1725545309744,0.007,57167.0,57166.0,0.451268]
[1725545309947,0.007,57167.0,57166.0,1.663536]
[1725545310162,0.1214,57169.0,57168.0,0.47493]
[1725545310350,0.00026244,57174.0,57173.0,0.535716]
[1725545310650,5.85363,57190.0,57189.0,0.087433]
[1725545310651,5.52553,57190.0,57189.0,0.087433]
[1725545310840,5.52553,57190.0,57189.0,0.811033]
[1725545311840,5.53153,57190.0,57189.0,0.812033]
[1725545312654,5.53153,57190.0,57189.0,0.802333]
[1725545312946,5.53153,57190.0,57189.0,2.014326]
[1725545313157,5.438974,57190.0,57189.0,2.014326]
[1725545313349,5.341703,57190.0,57189.0,2.014326]
[1725545313949,5.248354,57190.0,57189.0,2.014326]
[1725545316547,5.23970445,57190.0,57189.0,1.926893]
[1725545316739,5.23970445,57190.0,57189.0,1.326893]
[1725545317051,5.23970445,57190.0,57189.0,0.802333]
[1725545317455,5.23970445,57190.0,57189.0,2.014326]
[1725545318139,5.23970445,57190.0,57189.0,2.101759]
[1725545318443,5.14624545,57190.0,57189.0,2.101759]
[1725545318747,5.05290245,57190.0,57189.0,2.101759]
[1725545318950,3.44939346,57190.0,57189.0,2.189192]
[1725545319144,3.29900946,57190.0,57189.0,2.189192]
[1725545319344,3.09728246,57190.0,57189.0,2.189192]
[1725545319654,2.69041946,57190.0,57189.0,2.1978843]
[1725545319849,2.58635546,57190.0,57189.0,2.1978843]
[1725545320556,2.58635546,57190.0,57189.0,2.1104513]
[1725545321143,2.49518846,57190.0,57189.0,2.1104513]
[1725545322161,2.40692846,57190.0,57189.0,2.1104513]
[1725545322659,0.53972292,57190.0,57189.0,2.489192]
[1725545322859,0.012,57210.0,57209.0,0.087403]
[1725545323053,0.012,57210.0,57209.0,1.635403]
[1725545323251,0.012,57210.0,57209.0,2.235403]
[1725545323653,0.012,57210.0,57209.0,1.635403]
[1725545323857,0.012,57210.0,57209.0,2.235403]
[1725545324462,0.012,57210.0,57209.0,2.236403]
[1725545324961,0.00017415,57215.0,57209.0,2.323806]
[1725545325165,1.5e-07,57215.0,57214.0,0.83959]
[1725545325347,0.45072,57219.0,57218.0,0.087389]
[1725545325348,0.44972,57219.0,57218.0,0.087389]
[1725545325549,0.359999,57219.0,57218.0,1.53558219]
[1725545325754,0.2139,57232.0,57231.0,0.087369]
[1725545325955,0.2139,57232.0,57231.0,1.712969]
[1725545326153,0.2139,57232.0,57231.0,2.237169]
[1725545326553,0.2043,57241.0,57236.0,0.087361]
[1725545326747,0.289558,57238.0,57237.0,0.3648]
[1725545327156,0.589558,57238.0,57237.0,0.004]
[1725545327360,0.676916,57238.0,57237.0,0.004]
[1725545328159,0.676916,57238.0,57237.0,0.3658]
[1725545328160,0.289558,57238.0,57237.0,0.3658]
[1725545328360,0.376916,57238.0,57237.0,0.3658]
[1725545328562,0.676916,57238.0,57237.0,0.005]
[1725545328762,0.676916,57238.0,57231.0,0.3608]
[1725545328763,0.087368,57232.0,57231.0,0.3608]
[1725545329068,0.087368,57232.0,57226.0,0.00026218]
[1725545329069,0.087375,57227.0,57226.0,0.00026218]
[1725545329369,0.448175,57227.0,57226.0,0.00026218]
[1725545330171,0.567,57238.0,57226.0,0.36106218]
[1725545330465,0.57060631,57238.0,57237.0,0.004]
[1725545330660,0.74532231,57238.0,57237.0,0.004]
[1725545331456,0.65796431,57238.0,57237.0,0.004]
[1725545331664,0.65796431,57238.0,57237.0,0.005]
[1725545331665,0.61064805,57238.0,57237.0,0.005]
[1725545333257,0.004,57238.0,57237.0,0.39236]
[1725545334970,0.091358,57238.0,57237.0,0.005]
[1725545339160,0.091358,57238.0,57237.0,0.39236]
[1725545339566,0.091358,57238.0,57237.0,0.005]
[1725545340066,0.178716,57238.0,57237.0,0.005]
[1725545340270,0.087374,57228.0,57223.0,0.36448834]
[1725545340574,0.087374,57228.0,57224.0,0.3]
[1725545340755,0.087372,57230.0,57229.0,0.087371]
[1725545340955,0.087372,57230.0,57229.0,0.387371]
[1725545341161,0.087372,57230.0,57229.0,0.391371]
[1725545341566,0.087372,57230.0,57229.0,0.091371]
[1725545342071,0.087372,57230.0,57229.0,0.004]
[1725545342072,0.174744,57230.0,57229.0,0.004]
[1725545342271,0.087375,57227.0,57226.0,0.00126218]
[1725545342859,0.087375,57227.0,57226.0,0.00026218]
[1725545343065,0.086375,57227.0,57226.0,0.00026218]
[1725545344470,0.086375,57227.0,57226.0,0.08763918]
[1725545344675,0.086375,57227.0,57226.0,0.36206218]
[1725545345171,0.086375,57227.0,57226.0,0.44943918]
[1725545345480,0.747175,57227.0,57226.0,0.001]
[1725545345769,0.83455,57227.0,57226.0,0.001]
[1725545345971,0.087386,57221.0,57215.0,0.3]
[1725545346162,0.087386,57221.0,57214.0,0.44971]
[1725545346163,0.3608,57216.0,57214.0,0.45119]